[Event "*** Titled Tuesday Blitz"]
[Site "Chess.com"]
[Date "2020.10.20"]
[Round "8"]
[White "Firouzja2003"]
[Black "GigaQuparadze"]
[Result "0-1"]
[WhiteElo "2998"]
[BlackElo "2891"]
[TimeControl "180+1"]
[EndTime "11:37:47 PDT"]
[Termination "GigaQuparadze won by resignation"]

1. f4 {[%clk 0:03:00.9]} 1... g6 {[%clk 0:02:56.5]} 2. Nf3 {[%clk 0:03:00.6]}
2... Bg7 {[%clk 0:02:56.2]} 3. e4 {[%clk 0:03:00.9]} 3... d6 {[%clk 0:02:54.3]}
4. d4 {[%clk 0:03:00.3]} 4... Nf6 {[%clk 0:02:54.1]} 5. Bd3 {[%clk 0:03:00.2]}
5... O-O {[%clk 0:02:53.5]} 6. O-O {[%clk 0:03:00.3]} 6... Nbd7 {[%clk
0:02:51.6]} 7. e5 {[%clk 0:02:58.8]} 7... Nd5 {[%clk 0:02:51.3]} 8. c4 {[%clk
0:02:52.6]} 8... Nb4 {[%clk 0:02:51]} 9. Be4 {[%clk 0:02:33.8]} 9... c5 {[%clk
0:02:44.3]} 10. a3 {[%clk 0:02:31.4]} 10... Na6 {[%clk 0:02:42.9]} 11. exd6
{[%clk 0:01:37.2]} 11... exd6 {[%clk 0:02:35.7]} 12. d5 {[%clk 0:01:20.5]} 12...
b5 {[%clk 0:02:30.7]} 13. cxb5 {[%clk 0:01:18.9]} 13... Nc7 {[%clk 0:02:30.8]}
14. Nc3 {[%clk 0:01:19.2]} 14... Rb8 {[%clk 0:02:30.8]} 15. a4 {[%clk
0:01:16.5]} 15... a6 {[%clk 0:02:30.7]} 16. bxa6 {[%clk 0:01:14.7]} 16... Bxa6
{[%clk 0:02:31.6]} 17. Bd3 {[%clk 0:01:12.8]} 17... Bb7 {[%clk 0:02:29.7]} 18.
f5 {[%clk 0:01:09.7]} 18... Nxd5 {[%clk 0:02:22.1]} 19. Nxd5 {[%clk 0:01:09.7]}
19... Bxd5 {[%clk 0:02:23]} 20. fxg6 {[%clk 0:01:08.7]} 20... hxg6 {[%clk
0:02:22.9]} 21. Bb5 {[%clk 0:01:04.2]} 21... Nb6 {[%clk 0:02:11]} 22. a5 {[%clk
0:00:58.5]} 22... Bc4 {[%clk 0:02:10.1]} 23. Bxc4 {[%clk 0:00:55.4]} 23... Nxc4
{[%clk 0:02:11]} 24. Qd5 {[%clk 0:00:50.3]} 24... Ne5 {[%clk 0:01:30.7]} 25.
Nxe5 {[%clk 0:00:44.2]} 25... dxe5 {[%clk 0:01:30.8]} 26. Qxd8 {[%clk
0:00:37.6]} 26... Rfxd8 {[%clk 0:01:31.7]} 27. Be3 {[%clk 0:00:37.7]} 27... c4
{[%clk 0:01:30.8]} 28. a6 {[%clk 0:00:36.4]} 28... e4 {[%clk 0:01:31.2]} 29. a7
{[%clk 0:00:35.7]} 29... Ra8 {[%clk 0:01:31.5]} 30. Rad1 {[%clk 0:00:23.8]}
30... Bxb2 {[%clk 0:01:27.2]} 31. Rxd8+ {[%clk 0:00:21.5]} 31... Rxd8 {[%clk
0:01:28.1]} 32. Rf2 {[%clk 0:00:22]} 32... c3 {[%clk 0:01:24.9]} 33. Rc2 {[%clk
0:00:20.6]} 33... f5 {[%clk 0:01:21.5]} 34. Kf2 {[%clk 0:00:19.9]} 34... Ra8
{[%clk 0:01:20.4]} 35. g3 {[%clk 0:00:18.9]} 35... Kf7 {[%clk 0:01:19.5]} 36. h4
{[%clk 0:00:18.1]} 36... Ke6 {[%clk 0:01:19.5]} 37. Ke1 {[%clk 0:00:11.4]} 37...
Kd5 {[%clk 0:01:19.1]} 38. Rf2 {[%clk 0:00:03.8]} 38... Kc4 {[%clk 0:01:18.5]}
39. Kd1 {[%clk 0:00:02.9]} 39... Kb3 {[%clk 0:01:18.7]} 40. h5 {[%clk
0:00:02.3]} 40... gxh5 {[%clk 0:01:13.3]} 41. Rxf5 {[%clk 0:00:02.2]} 41... c2+
{[%clk 0:01:13.6]} 42. Ke2 {[%clk 0:00:02.9]} 42... c1=Q {[%clk 0:01:13.4]} 43.
Bxc1 {[%clk 0:00:03.3]} 43... Bxc1 {[%clk 0:01:13.7]} 44. Re5 {[%clk 0:00:03.9]}
44... e3 {[%clk 0:01:08.5]} 45. Re7 {[%clk 0:00:04.2]} 45... Bd2 {[%clk
0:01:07.7]} 46. Rb7+ {[%clk 0:00:03.8]} 46... Kc4 {[%clk 0:01:07.8]} 47. Rh7
{[%clk 0:00:04.2]} 47... Kd4 {[%clk 0:01:06.3]} 48. Kf3 {[%clk 0:00:04.8]} 48...
Kd3 {[%clk 0:01:05.7]} 49. Rd7+ {[%clk 0:00:05]} 49... Kc4 {[%clk 0:01:05]} 50.
Rh7 {[%clk 0:00:05.4]} 50... Rf8+ {[%clk 0:01:03.3]} 51. Ke2 {[%clk 0:00:05.6]}
51... Ra8 {[%clk 0:01:00.8]} 52. Kf3 {[%clk 0:00:04]} 52... Kb4 {[%clk
0:00:51.4]} 53. Ke2 {[%clk 0:00:03.8]} 53... Ka4 {[%clk 0:00:47.5]} 54. Kf3
{[%clk 0:00:02.5]} 54... Re8 {[%clk 0:00:44.3]} 55. Ke2 {[%clk 0:00:02.8]} 55...
Ba5 {[%clk 0:00:44.2]} 56. Rxh5 {[%clk 0:00:02.4]} 56... Bb6 {[%clk 0:00:44.3]}
57. Rh6 {[%clk 0:00:02.4]} 57... Kb5 {[%clk 0:00:43.3]} 58. Rh5+ {[%clk
0:00:03.1]} 58... Ka6 {[%clk 0:00:41.7]} 59. Rh6 {[%clk 0:00:03.4]} 59... Kxa7
{[%clk 0:00:41.1]} 60. g4 {[%clk 0:00:04.2]} 60... Rf8 {[%clk 0:00:41.3]} 61. g5
{[%clk 0:00:04.4]} 61... Rf2+ {[%clk 0:00:41.4]} 62. Kd3 {[%clk 0:00:05]} 62...
Rd2+ {[%clk 0:00:41.5]} 63. Kc3 {[%clk 0:00:05.5]} 63... Ba5+ {[%clk 0:00:40.8]}
64. Kc4 {[%clk 0:00:05.7]} 64... e2 {[%clk 0:00:40.7]} 65. Re6 {[%clk
0:00:05.7]} 65... Rb2 {[%clk 0:00:40.9]} 66. g6 {[%clk 0:00:05.7]} 66... e1=Q
{[%clk 0:00:40.5]} 67. Rxe1 {[%clk 0:00:06.3]} 67... Bxe1 {[%clk 0:00:40.3]} 0-1

[Event "*** Titled Tuesday Blitz"]
[Site "Chess.com"]
[Date "2020.10.20"]
[Round "8"]
[White "gumimis"]
[Black "aisha_zakirova"]
[Result "1-0"]
[WhiteElo "2283"]
[BlackElo "2160"]
[TimeControl "180+1"]
[EndTime "11:37:48 PDT"]
[Termination "gumimis won on time"]

1. e4 {[%clk 0:02:59.1]} 1... c5 {[%clk 0:02:59.3]} 2. Nf3 {[%clk 0:02:58.9]}
2... d6 {[%clk 0:02:58.7]} 3. d4 {[%clk 0:02:59.2]} 3... cxd4 {[%clk 0:02:58.6]}
4. Nxd4 {[%clk 0:02:59.7]} 4... Nf6 {[%clk 0:02:58.4]} 5. Nc3 {[%clk 0:03:00]}
5... Nc6 {[%clk 0:02:56.3]} 6. Bg5 {[%clk 0:02:57.4]} 6... e6 {[%clk 0:02:55.2]}
7. Qd2 {[%clk 0:02:50.3]} 7... a6 {[%clk 0:02:46.4]} 8. O-O-O {[%clk 0:02:48.1]}
8... Bd7 {[%clk 0:02:40.1]} 9. f4 {[%clk 0:02:46.4]} 9... Be7 {[%clk 0:02:34.6]}
10. Kb1 {[%clk 0:02:34.8]} 10... h6 {[%clk 0:02:31.2]} 11. Bxf6 {[%clk 0:02:34]}
11... Bxf6 {[%clk 0:02:30.2]} 12. Nf3 {[%clk 0:02:16.4]} 12... Be7 {[%clk
0:02:24.5]} 13. e5 {[%clk 0:02:14.8]} 13... d5 {[%clk 0:02:18.6]} 14. f5 {[%clk
0:02:08.7]} 14... Bg5 {[%clk 0:01:24.1]} 15. Nxg5 {[%clk 0:01:59]} 15... Qxg5
{[%clk 0:01:22.1]} 16. fxe6 {[%clk 0:01:56]} 16... fxe6 {[%clk 0:01:14.6]} 17.
Qxg5 {[%clk 0:01:27.6]} 17... hxg5 {[%clk 0:01:10]} 18. Re1 {[%clk 0:01:28.1]}
18... O-O {[%clk 0:01:05.4]} 19. Bd3 {[%clk 0:01:11.9]} 19... Rf2 {[%clk
0:01:01.5]} 20. g3 {[%clk 0:01:02.8]} 20... Raf8 {[%clk 0:00:59.9]} 21. h4
{[%clk 0:01:00.4]} 21... g4 {[%clk 0:00:55.2]} 22. Ne2 {[%clk 0:00:49.9]} 22...
Nb4 {[%clk 0:00:32]} 23. Nf4 {[%clk 0:00:46.7]} 23... Nxd3 {[%clk 0:00:27.5]}
24. cxd3 {[%clk 0:00:46.7]} 24... Rc8 {[%clk 0:00:18.3]} 25. Rc1 {[%clk
0:00:45.2]} 25... Rxc1+ {[%clk 0:00:14.3]} 26. Rxc1 {[%clk 0:00:46]} 26... Rf3
{[%clk 0:00:13.5]} 27. Rc7 {[%clk 0:00:43.1]} 27... Ba4 {[%clk 0:00:11.7]} 28.
b3 {[%clk 0:00:32.4]} 28... Bb5 {[%clk 0:00:11]} 29. Nxe6 {[%clk 0:00:25.2]}
29... Rxg3 {[%clk 0:00:07.9]} 30. Rxg7+ {[%clk 0:00:23.6]} 30... Kh8 {[%clk
0:00:06.7]} 31. Rxb7 {[%clk 0:00:18.9]} 31... Bxd3+ {[%clk 0:00:06.3]} 32. Kb2
{[%clk 0:00:18.6]} 32... Bf5 {[%clk 0:00:05]} 33. Nd4 {[%clk 0:00:16.7]} 33...
Rd3 {[%clk 0:00:04.4]} 34. Nxf5 {[%clk 0:00:16.6]} 34... g3 {[%clk 0:00:04.2]}
35. Rc7 {[%clk 0:00:13.2]} 35... g2 {[%clk 0:00:03.2]} 36. Rc1 {[%clk
0:00:13.5]} 36... Rd2+ {[%clk 0:00:03.2]} 37. Ka3 {[%clk 0:00:12.4]} 37... Rf2
{[%clk 0:00:03.8]} 38. Ne3 {[%clk 0:00:11.9]} 38... d4 {[%clk 0:00:03.2]} 39.
Nxg2 {[%clk 0:00:10.9]} 39... Rxg2 {[%clk 0:00:02.7]} 40. Rd1 {[%clk 0:00:07.5]}
40... d3 {[%clk 0:00:02]} 41. Rxd3 {[%clk 0:00:07.7]} 41... Rh2 {[%clk
0:00:02.9]} 42. Re3 {[%clk 0:00:07.8]} 42... Rxh4 {[%clk 0:00:00.7]} 43. e6
{[%clk 0:00:08]} 43... Kg7 {[%clk 0:00:01.2]} 44. e7 {[%clk 0:00:08.3]} 1-0

[Event "*** Titled Tuesday Blitz"]
[Site "Chess.com"]
[Date "2020.10.20"]
[Round "8"]
[White "Oleksandr_Bortnyk"]
[Black "Gabrielian_Artur"]
[Result "0-1"]
[WhiteElo "2879"]
[BlackElo "2803"]
[TimeControl "180+1"]
[EndTime "11:37:51 PDT"]
[Termination "Gabrielian_Artur won by checkmate"]

1. e4 {[%clk 0:02:59.7]} 1... c5 {[%clk 0:02:59.8]} 2. c3 {[%clk 0:02:58.2]}
2... Nf6 {[%clk 0:02:56.9]} 3. e5 {[%clk 0:02:58.6]} 3... Nd5 {[%clk 0:02:57.1]}
4. d4 {[%clk 0:02:59.5]} 4... cxd4 {[%clk 0:02:55.7]} 5. Nf3 {[%clk 0:03:00.4]}
5... Nc6 {[%clk 0:02:55.2]} 6. cxd4 {[%clk 0:03:01.3]} 6... d6 {[%clk
0:02:55.3]} 7. Nc3 {[%clk 0:02:59.9]} 7... dxe5 {[%clk 0:02:54.3]} 8. dxe5
{[%clk 0:02:52.9]} 8... Be6 {[%clk 0:02:54]} 9. Qa4 {[%clk 0:02:28.7]} 9... g6
{[%clk 0:02:24.6]} 10. Bb5 {[%clk 0:02:11.7]} 10... Rc8 {[%clk 0:02:19]} 11. O-O
{[%clk 0:01:55.4]} 11... Nxc3 {[%clk 0:02:00.9]} 12. bxc3 {[%clk 0:01:54.2]}
12... Bg7 {[%clk 0:02:00.9]} 13. Qxa7 {[%clk 0:01:40.3]} 13... O-O {[%clk
0:01:54.9]} 14. Qe3 {[%clk 0:01:39.4]} 14... Qc7 {[%clk 0:01:47.7]} 15. Re1
{[%clk 0:01:35.2]} 15... Rfd8 {[%clk 0:01:37.8]} 16. Bb2 {[%clk 0:01:06.2]}
16... Bd5 {[%clk 0:01:33.1]} 17. c4 {[%clk 0:00:33.1]} 17... Bxf3 {[%clk
0:01:30.4]} 18. gxf3 {[%clk 0:00:33.4]} 18... e6 {[%clk 0:01:27.2]} 19. a3
{[%clk 0:00:29.4]} 19... Ne7 {[%clk 0:01:19.8]} 20. Rad1 {[%clk 0:00:26.2]}
20... Nf5 {[%clk 0:01:18.2]} 21. Qe4 {[%clk 0:00:17.7]} 21... Bf8 {[%clk
0:01:17.3]} 22. Bc1 {[%clk 0:00:16.2]} 22... Be7 {[%clk 0:01:05.8]} 23. a4
{[%clk 0:00:11.9]} 23... b6 {[%clk 0:01:05.3]} 24. Bf4 {[%clk 0:00:09.8]} 24...
h5 {[%clk 0:01:04.1]} 25. h3 {[%clk 0:00:09.2]} 25... Qc5 {[%clk 0:00:57.3]} 26.
Ba6 {[%clk 0:00:04.4]} 26... Bh4 {[%clk 0:00:42.7]} 27. Be3 {[%clk 0:00:02.6]}
27... Nxe3 {[%clk 0:00:20]} 28. Rxd8+ {[%clk 0:00:02.8]} 28... Rxd8 {[%clk
0:00:18.2]} 29. Qxh4 {[%clk 0:00:03.3]} 29... Ra8 {[%clk 0:00:13.9]} 30. Bb7
{[%clk 0:00:02.9]} 30... Rb8 {[%clk 0:00:13.7]} 31. Ba6 {[%clk 0:00:02.3]} 31...
Nf5 {[%clk 0:00:13.4]} 32. Qg5 {[%clk 0:00:01.9]} 32... Qd4 {[%clk 0:00:13.4]}
33. Bb5 {[%clk 0:00:02.2]} 33... Rd8 {[%clk 0:00:13.5]} 34. Kg2 {[%clk
0:00:02.6]} 34... Kg7 {[%clk 0:00:12.6]} 35. c5 {[%clk 0:00:03.1]} 35... Nh4+
{[%clk 0:00:12.7]} 36. Kg3 {[%clk 0:00:02.3]} 36... Nf5+ {[%clk 0:00:13]} 37.
Kg2 {[%clk 0:00:02.9]} 37... bxc5 {[%clk 0:00:12.8]} 38. Re4 {[%clk 0:00:02.8]}
38... Qd1 {[%clk 0:00:11.9]} 39. a5 {[%clk 0:00:03.2]} 39... Rd2 {[%clk
0:00:11.9]} 40. a6 {[%clk 0:00:03.4]} 40... Qc2 {[%clk 0:00:10.8]} 41. Qf6+
{[%clk 0:00:02.2]} 41... Kg8 {[%clk 0:00:11.3]} 42. Be2 {[%clk 0:00:02.3]} 42...
Rxe2 {[%clk 0:00:11.1]} 43. Qd8+ {[%clk 0:00:02.6]} 43... Kh7 {[%clk 0:00:11]}
44. Rxe2 {[%clk 0:00:02.4]} 44... Qxe2 {[%clk 0:00:11.3]} 45. a7 {[%clk
0:00:03.3]} 45... Ne3+ {[%clk 0:00:11.8]} 46. Kg3 {[%clk 0:00:04]} 46... h4+
{[%clk 0:00:12.4]} 47. Qxh4+ {[%clk 0:00:03]} 47... Kg7 {[%clk 0:00:12.2]} 48.
Qf6+ {[%clk 0:00:03.6]} 48... Kh7 {[%clk 0:00:12.8]} 49. a8=Q {[%clk 0:00:04.5]}
49... Nf5+ {[%clk 0:00:12.8]} 50. Kg2 {[%clk 0:00:04.3]} 50... Ne3+ {[%clk
0:00:12.2]} 51. Kg3 {[%clk 0:00:04.8]} 51... Nf5+ {[%clk 0:00:12.5]} 52. Kg4
{[%clk 0:00:05]} 52... Nh6+ {[%clk 0:00:08.1]} 53. Kg5 {[%clk 0:00:05.6]} 53...
Qd2+ {[%clk 0:00:07.9]} 54. Qf4 {[%clk 0:00:06]} 54... Qd1 {[%clk 0:00:07.9]}
55. Kf6 {[%clk 0:00:04.8]} 55... Ng8+ {[%clk 0:00:06.6]} 56. Kxf7 {[%clk
0:00:05.2]} 56... Qd7+ {[%clk 0:00:06.4]} 57. Kf8 {[%clk 0:00:03.3]} 57... Qe7#
{[%clk 0:00:06.7]} 0-1

[Event "*** Titled Tuesday Blitz"]
[Site "Chess.com"]
[Date "2020.10.20"]
[Round "8"]
[White "MokshanovAlexey"]
[Black "Rud_Makarian"]
[Result "1/2-1/2"]
[WhiteElo "2560"]
[BlackElo "2751"]
[TimeControl "180+1"]
[EndTime "11:37:51 PDT"]
[Termination "Game drawn by agreement"]

1. e4 {[%clk 0:03:00.9]} 1... e5 {[%clk 0:02:59.4]} 2. Nf3 {[%clk 0:03:00.7]}
2... Nc6 {[%clk 0:03:00.3]} 3. d4 {[%clk 0:02:58.8]} 3... exd4 {[%clk
0:03:01.2]} 4. Nxd4 {[%clk 0:02:59]} 4... Nf6 {[%clk 0:03:02]} 5. Nc3 {[%clk
0:02:55.8]} 5... Bb4 {[%clk 0:03:02]} 6. Nxc6 {[%clk 0:02:55.9]} 6... bxc6
{[%clk 0:03:02.9]} 7. Bd3 {[%clk 0:02:56.1]} 7... d5 {[%clk 0:03:03.3]} 8. exd5
{[%clk 0:02:55.8]} 8... O-O {[%clk 0:03:03.3]} 9. O-O {[%clk 0:02:55.7]} 9...
cxd5 {[%clk 0:03:03.8]} 10. h3 {[%clk 0:02:52.5]} 10... c6 {[%clk 0:03:00.9]}
11. Qf3 {[%clk 0:02:51.8]} 11... Bd6 {[%clk 0:02:57.9]} 12. Bf4 {[%clk
0:02:51.5]} 12... Rb8 {[%clk 0:02:57.7]} 13. b3 {[%clk 0:02:46.5]} 13... Rb4
{[%clk 0:02:57.6]} 14. Bxd6 {[%clk 0:02:46.6]} 14... Qxd6 {[%clk 0:02:58.5]} 15.
Rfe1 {[%clk 0:02:43.5]} 15... Be6 {[%clk 0:02:58.7]} 16. Ne2 {[%clk 0:02:38.2]}
16... Nd7 {[%clk 0:02:55.7]} 17. Ng3 {[%clk 0:02:36.3]} 17... g6 {[%clk
0:02:56]} 18. Rad1 {[%clk 0:02:29.5]} 18... a5 {[%clk 0:02:56.2]} 19. c3 {[%clk
0:01:54.2]} 19... Rbb8 {[%clk 0:02:46.1]} 20. c4 {[%clk 0:01:53.9]} 20... a4
{[%clk 0:02:43.1]} 21. cxd5 {[%clk 0:01:51.9]} 21... cxd5 {[%clk 0:02:42.7]} 22.
Bc4 {[%clk 0:01:44.4]} 22... axb3 {[%clk 0:02:41.5]} 23. Bxb3 {[%clk 0:01:40.1]}
23... Rfd8 {[%clk 0:02:18.6]} 24. Bxd5 {[%clk 0:01:08.7]} 24... Ne5 {[%clk
0:02:18.2]} 25. Qf6 {[%clk 0:01:05.3]} 25... Bxd5 {[%clk 0:02:15.3]} 26. Qxd6
{[%clk 0:01:05]} 26... Rxd6 {[%clk 0:02:04.6]} 27. Rxe5 {[%clk 0:01:02.4]} 27...
Rbd8 {[%clk 0:02:05.2]} 28. Ne4 {[%clk 0:00:51.1]} 28... Bxe4 {[%clk 0:02:05.2]}
29. Rxd6 {[%clk 0:00:51.2]} 29... Rxd6 {[%clk 0:02:06.1]} 30. Rxe4 {[%clk
0:00:51.6]} 30... Rd1+ {[%clk 0:02:07]} 31. Kh2 {[%clk 0:00:51.7]} 31... Rd2
{[%clk 0:02:07.9]} 32. Rf4 {[%clk 0:00:50.7]} 32... Rxa2 {[%clk 0:02:07.7]} 33.
h4 {[%clk 0:00:50.9]} 33... Kg7 {[%clk 0:02:07.7]} 34. g3 {[%clk 0:00:48.5]}
34... f5 {[%clk 0:02:03]} 35. Kg2 {[%clk 0:00:47.9]} 35... Kf6 {[%clk
0:02:02.9]} 36. Rb4 {[%clk 0:00:48.1]} 36... Ra6 {[%clk 0:02:02.8]} 37. Rb5
{[%clk 0:00:47.7]} 37... Re6 {[%clk 0:01:58.5]} 38. Rc5 {[%clk 0:00:47.6]} 38...
Kg7 {[%clk 0:01:57]} 39. Rc7+ {[%clk 0:00:47.4]} 39... Kh6 {[%clk 0:01:57.5]}
40. Rb7 {[%clk 0:00:47.5]} 40... Re8 {[%clk 0:01:57.3]} 41. Ra7 {[%clk
0:00:47.4]} 41... Rg8 {[%clk 0:01:57.8]} 42. Kh3 {[%clk 0:00:46.2]} 42... Rg7
{[%clk 0:01:58.1]} 43. Ra6 {[%clk 0:00:38.5]} 43... Rc7 {[%clk 0:01:55.2]} 44.
Ra8 {[%clk 0:00:38]} 44... Kh5 {[%clk 0:01:50.1]} 45. Ra5 {[%clk 0:00:36.1]}
45... Rc3 {[%clk 0:01:42.3]} 46. Rd5 {[%clk 0:00:35.4]} 46... Rf3 {[%clk
0:01:39.9]} 47. Kg2 {[%clk 0:00:35.1]} 47... Kg4 {[%clk 0:01:39.5]} 48. Rd4+
{[%clk 0:00:27.1]} 48... f4 {[%clk 0:01:39.6]} 49. Rc4 {[%clk 0:00:22.4]} 49...
h6 {[%clk 0:01:36.4]} 50. Rd4 {[%clk 0:00:14.8]} 50... g5 {[%clk 0:01:29.6]} 51.
hxg5 {[%clk 0:00:14.8]} 51... hxg5 {[%clk 0:01:30.5]} 52. Rc4 {[%clk 0:00:12.7]}
52... Rd3 {[%clk 0:01:30.4]} 53. gxf4 {[%clk 0:00:12.9]} 53... gxf4 {[%clk
0:01:31.3]} 54. Rb4 {[%clk 0:00:13.4]} 54... Rc3 {[%clk 0:01:28.4]} 55. Ra4
{[%clk 0:00:13.5]} 55... Kf5 {[%clk 0:01:25.9]} 56. Rb4 {[%clk 0:00:12.8]} 56...
Ke5 {[%clk 0:01:24.5]} 57. Ra4 {[%clk 0:00:12.7]} 57... Rb3 {[%clk 0:01:25.1]}
58. Rc4 {[%clk 0:00:12.6]} 58... Kf5 {[%clk 0:01:16.6]} 59. Ra4 {[%clk
0:00:12.4]} 59... Rd3 {[%clk 0:01:14.2]} 60. Rc4 {[%clk 0:00:12.2]} 60... Rd5
{[%clk 0:01:14.5]} 61. Ra4 {[%clk 0:00:12]} 61... Ke5 {[%clk 0:01:09.7]} 62. Kf3
{[%clk 0:00:11.7]} 62... Rd3+ {[%clk 0:01:08.4]} 63. Kg2 {[%clk 0:00:12.1]}
63... Rd4 {[%clk 0:01:07.8]} 64. Rxd4 {[%clk 0:00:11.2]} 64... Kxd4 {[%clk
0:01:08.7]} 65. Kf3 {[%clk 0:00:10.8]} 65... Ke5 {[%clk 0:01:08.8]} 66. Ke2
{[%clk 0:00:09.3]} 66... Ke4 {[%clk 0:01:09]} 67. f3+ {[%clk 0:00:09.8]} 67...
Ke5 {[%clk 0:00:54]} 68. Kd3 {[%clk 0:00:09.5]} 68... Kd5 {[%clk 0:00:54.5]} 69.
Kc3 {[%clk 0:00:09.8]} 69... Kc5 {[%clk 0:00:53.8]} 70. Kd3 {[%clk 0:00:10.1]}
70... Kd5 {[%clk 0:00:54.3]} 71. Kc3 {[%clk 0:00:10.5]} 71... Kc5 {[%clk
0:00:53.4]} 1/2-1/2

[Event "*** Titled Tuesday Blitz"]
[Site "Chess.com"]
[Date "2020.10.20"]
[Round "8"]
[White "bakki78"]
[Black "Mikhail_Golubev"]
[Result "0-1"]
[WhiteElo "2725"]
[BlackElo "2556"]
[TimeControl "180+1"]
[EndTime "11:37:51 PDT"]
[Termination "Mikhail_Golubev won by resignation"]

1. e4 {[%clk 0:03:00.9]} 1... c5 {[%clk 0:03:00]} 2. c3 {[%clk 0:03:00.9]} 2...
d6 {[%clk 0:03:00]} 3. d4 {[%clk 0:03:00.7]} 3... Nf6 {[%clk 0:03:00.4]} 4. Bd3
{[%clk 0:03:00]} 4... g6 {[%clk 0:03:00.4]} 5. Ne2 {[%clk 0:02:59.6]} 5... Bg7
{[%clk 0:02:59.8]} 6. O-O {[%clk 0:02:59.7]} 6... O-O {[%clk 0:02:59.4]} 7. h3
{[%clk 0:02:53.2]} 7... Nbd7 {[%clk 0:02:53.8]} 8. a4 {[%clk 0:02:49.4]} 8...
cxd4 {[%clk 0:02:48.4]} 9. cxd4 {[%clk 0:02:49.2]} 9... b6 {[%clk 0:02:48.4]}
10. Nbc3 {[%clk 0:02:47.2]} 10... Bb7 {[%clk 0:02:48.5]} 11. a5 {[%clk 0:02:44]}
11... e5 {[%clk 0:02:41.2]} 12. a6 {[%clk 0:02:30.4]} 12... Bc8 {[%clk
0:02:41.2]} 13. d5 {[%clk 0:02:18.7]} 13... Nc5 {[%clk 0:02:37.7]} 14. b4 {[%clk
0:01:54.6]} 14... Nxd3 {[%clk 0:02:36.2]} 15. Qxd3 {[%clk 0:01:55.2]} 15... Bd7
{[%clk 0:02:36.3]} 16. b5 {[%clk 0:01:50.8]} 16... Rc8 {[%clk 0:02:32.9]} 17.
Be3 {[%clk 0:01:46.3]} 17... Nh5 {[%clk 0:02:30.1]} 18. Rac1 {[%clk 0:01:40.1]}
18... f5 {[%clk 0:02:28.4]} 19. f4 {[%clk 0:01:39.7]} 19... exf4 {[%clk
0:02:23.8]} 20. Nxf4 {[%clk 0:01:38.6]} 20... Ng3 {[%clk 0:02:21.8]} 21. Rfe1
{[%clk 0:01:30.1]} 21... fxe4 {[%clk 0:02:14]} 22. Qd2 {[%clk 0:01:29.5]} 22...
Qh4 {[%clk 0:02:09.3]} 23. Ne6 {[%clk 0:01:23.8]} 23... Bxe6 {[%clk 0:01:18.7]}
24. dxe6 {[%clk 0:01:22.8]} 24... Rxc3 {[%clk 0:01:18.6]} 25. e7 {[%clk
0:01:13.5]} 25... Qxe7 {[%clk 0:01:08]} 26. Rxc3 {[%clk 0:01:12.6]} 26... Bxc3
{[%clk 0:01:01.3]} 27. Qxc3 {[%clk 0:01:11.7]} 27... Rf1+ {[%clk 0:00:59.7]} 28.
Kh2 {[%clk 0:01:10.8]} 28... Rxe1 {[%clk 0:00:57.1]} 29. Qxe1 {[%clk 0:01:09.2]}
29... Nf5 {[%clk 0:00:57.1]} 30. Bf4 {[%clk 0:00:50.4]} 30... e3 {[%clk
0:00:44.8]} 31. Qc3 {[%clk 0:00:46]} 31... e2 {[%clk 0:00:32.4]} 32. Bd2 {[%clk
0:00:46.1]} 32... Qe5+ {[%clk 0:00:28.4]} 33. Qxe5 {[%clk 0:00:45.6]} 33... dxe5
{[%clk 0:00:28.6]} 34. Kg1 {[%clk 0:00:46]} 34... Nd4 {[%clk 0:00:26.2]} 35. Kf2
{[%clk 0:00:46.3]} 35... Nxb5 {[%clk 0:00:26]} 36. Kxe2 {[%clk 0:00:45.7]} 36...
Nc7 {[%clk 0:00:25.4]} 37. Bc3 {[%clk 0:00:46.1]} 37... Nxa6 {[%clk 0:00:25]}
38. Bxe5 {[%clk 0:00:46.6]} 38... Nc5 {[%clk 0:00:24.8]} 39. Bc7 {[%clk
0:00:44.4]} 39... Kf7 {[%clk 0:00:23.8]} 40. Ke3 {[%clk 0:00:45]} 40... Ke6
{[%clk 0:00:23.4]} 41. Bb8 {[%clk 0:00:45.7]} 41... a5 {[%clk 0:00:22.3]} 42. g4
{[%clk 0:00:46.1]} 42... b5 {[%clk 0:00:20.4]} 43. Kd4 {[%clk 0:00:46.1]} 43...
Nd7 {[%clk 0:00:19.6]} 44. Bc7 {[%clk 0:00:45.6]} 44... a4 {[%clk 0:00:18.5]}
45. Kc3 {[%clk 0:00:45.8]} 45... Kd5 {[%clk 0:00:16.9]} 46. Kb4 {[%clk
0:00:45.3]} 46... Kc6 {[%clk 0:00:16.9]} 47. Bd8 {[%clk 0:00:45.8]} 47... Nb6
{[%clk 0:00:16.6]} 48. h4 {[%clk 0:00:41.1]} 48... Nd5+ {[%clk 0:00:17.5]} 49.
Ka3 {[%clk 0:00:41.2]} 49... Kc5 {[%clk 0:00:17.7]} 50. h5 {[%clk 0:00:41.7]}
50... Kc4 {[%clk 0:00:17.3]} 51. hxg6 {[%clk 0:00:40.9]} 51... hxg6 {[%clk
0:00:16.6]} 52. Bg5 {[%clk 0:00:40.1]} 52... Nc3 {[%clk 0:00:15.7]} 53. Be7
{[%clk 0:00:37.3]} 53... Nd5 {[%clk 0:00:14.7]} 54. Bf8 {[%clk 0:00:36.4]} 54...
Ne3 {[%clk 0:00:14.5]} 55. g5 {[%clk 0:00:36.5]} 55... Nf5 {[%clk 0:00:14.7]}
56. Bb4 {[%clk 0:00:32.3]} 56... Nd4 {[%clk 0:00:15.6]} 57. Bf8 {[%clk
0:00:31.6]} 57... Ne6 {[%clk 0:00:15.2]} 58. Be7 {[%clk 0:00:31.8]} 58... Nc5
{[%clk 0:00:15.3]} 59. Kb2 {[%clk 0:00:28.6]} 59... b4 {[%clk 0:00:15.4]} 60.
Bf6 {[%clk 0:00:28.4]} 60... a3+ {[%clk 0:00:16.3]} 61. Ka2 {[%clk 0:00:28.3]}
61... Kb5 {[%clk 0:00:15.6]} 62. Be7 {[%clk 0:00:27.5]} 62... Ne4 {[%clk
0:00:15.5]} 63. Kb3 {[%clk 0:00:27.5]} 63... Nd2+ {[%clk 0:00:15.1]} 64. Kc2
{[%clk 0:00:27.8]} 64... Nc4 {[%clk 0:00:14.9]} 65. Kb3 {[%clk 0:00:27.9]} 65...
Na5+ {[%clk 0:00:14.9]} 66. Kc2 {[%clk 0:00:27.9]} 66... Ka4 {[%clk 0:00:15.4]}
67. Bf6 {[%clk 0:00:27.1]} 67... b3+ {[%clk 0:00:16.3]} 68. Kc1 {[%clk 0:00:27]}
68... Nc4 {[%clk 0:00:16.6]} 0-1